bitfinex/quotes_ETHUSD_20260227
["timestamp","ask_amount","ask_price","bid_price","bid_amount"]
[1772151827428,0.47753316,2024.2,2023.8,0.30719268]
[1772151827627,0.47753316,2024.2,2023.6,0.30719268]
[1772151827829,0.47753316,2024.2,2023.6,0.38058291]
[1772151828016,0.47753316,2024.2,2023.8,0.30719268]
[1772151828211,2.39853316,2024.4,2023.9,0.07339023]
[1772151828815,0.47753316,2024.3,2023.7,0.07339023]
[1772151829018,0.47753316,2024.3,2023.6,0.30719268]
[1772151829239,0.47753316,2024.1,2023.6,0.30719268]
[1772151829416,0.47753316,2024.1,2023.4,0.30829268]
[1772151829615,0.47753316,2024.1,2023.4,1.54382712]
[1772151831012,0.47753316,2024.1,2023.5,0.07339023]
[1772151831218,0.47753316,2024.3,2023.9,1.23523889]
[1772151831742,1.71253072,2024.3,2023.8,1.30865327]
[1772151831925,0.47753316,2024.2,2023.8,1.23526304]
[1772151832355,0.47753316,2024.2,2023.7,0.38058291]
[1772151832635,0.47753316,2024.2,2023.7,1.61593784]
[1772151833744,2.39853316,2024.4,2023.8,0.07339023]
[1772151834040,3.63346715,2024.4,2023.9,0.07339023]
[1772151834212,2.39853316,2024.4,2023.9,0.07339023]
[1772151834423,0.47753316,2024.4,2024.0,0.38058291]
[1772151835315,0.47753316,2024.4,2023.6,1.421]
[1772151835622,0.47753316,2024.3,2024.0,0.0011]
[1772151836427,0.47753316,2024.3,2023.8,0.0011]
[1772151837041,0.47753316,2024.2,2023.8,0.0011]
[1772151837348,0.47753316,2024.0,2023.8,0.0011]
[1772151837845,0.47753316,2024.0,2023.5,0.0011]
[1772151838845,0.47753316,2024.1,2023.5,0.07559023]
[1772151839250,0.47753316,2024.1,2023.5,0.0011]
[1772151839477,0.47753316,2023.9,2023.5,0.0011]
[1772151840263,3.63369523,2024.1,2023.5,0.0011]
[1772151840555,0.47753316,2024.1,2023.5,0.07559023]
[1772151840970,0.47753316,2024.4,2023.6,0.07449023]
[1772151841972,0.47753316,2024.3,2023.7,1.23536097]
[1772151842134,0.47753316,2024.3,2023.6,1.23537807]
[1772151842469,0.47753316,2024.3,2023.6,1.3098683]
[1772151842758,0.47753316,2024.3,2023.5,1.31106907]
[1772151842951,0.47753316,2024.3,2023.5,0.0011]
[1772151844076,0.47753316,2024.1,2023.5,0.0011]
[1772151844378,1.92,2024.0,2023.5,0.0011]
[1772151844562,0.47753316,2024.1,2023.5,0.07559023]
[1772151844752,1.92,2024.2,2023.5,0.07559023]
[1772151845276,1.71253254,2024.3,2023.5,0.07559023]
[1772151845485,1.71253711,2024.3,2023.6,0.07449023]
[1772151845656,0.47753316,2024.2,2023.6,0.07449023]
[1772151846057,3.63251272,2024.4,2023.8,0.07449023]
[1772151846275,0.47753316,2024.3,2023.8,0.07449023]
[1772151846470,0.47753316,2024.3,2023.6,1.30990448]
[1772151847579,0.47753316,2024.3,2023.7,0.0011]
[1772151847958,0.001,2024.1,2023.7,0.0011]
[1772151848859,0.001,2024.1,2023.7,0.07559023]
[1772151849371,0.47853316,2024.1,2023.7,0.0011]
[1772151850784,1.71366837,2024.1,2023.7,0.0011]
[1772151850989,0.47853316,2024.1,2023.7,0.0011]
[1772151851324,0.001,2024.1,2023.7,0.07559023]
[1772151851491,1.69888262,2024.1,2023.7,0.07559023]
[1772151852327,0.46375488,2024.1,2023.7,0.07559023]
[1772151852620,1.69888108,2024.1,2023.7,0.0011]
[1772151852922,0.46375488,2024.1,2023.7,0.0011]
[1772151857802,0.001,2024.1,2023.8,0.07449023]
[1772151858004,0.46375488,2024.1,2023.7,0.0011]
[1772151860441,0.46375488,2024.1,2023.7,0.07559023]
[1772151861254,0.46375488,2024.1,2023.7,0.38347029]
[1772151861631,0.46375488,2024.1,2023.8,1.23529993]
[1772151862819,0.46275488,2024.6,2023.9,0.38237029]
[1772151863123,0.46275488,2024.3,2023.7,1.2364162]
[1772151863322,0.46275488,2024.3,2023.7,0.0011]
[1772151863748,0.46275488,2024.1,2023.7,0.0011]
[1772151866063,1.23513877,2024.1,2023.7,0.0011]
[1772151866263,0.46275488,2024.0,2023.7,0.0011]
[1772151871562,0.46275488,2023.9,2023.7,0.0011]
[1772151871948,0.46275488,2023.9,2023.5,0.0011]
[1772151871949,0.46375488,2023.9,2023.5,0.0011]
[1772151872137,0.45269461,2023.6,2022.5,6.580259]
[1772151872343,2.37069461,2023.5,2022.8,0.47543167]
[1772151872759,1.44,2023.8,2022.8,0.47543167]
[1772151873043,0.001,2023.9,2023.3,0.47543167]
[1772151873258,0.001,2023.9,2023.5,0.47543167]
[1772151874054,0.001,2023.9,2023.6,1.23542202]
[1772151874254,0.001,2023.9,2023.5,5.41711975]
[1772151874255,0.001,2023.9,2023.5,1.23543603]
[1772151874546,0.45369461,2023.9,2023.5,1.23543603]
[1772151875071,0.45269461,2024.1,2023.5,1.23543603]
[1772151875239,0.45269461,2024.1,2023.5,1.7108677]
[1772151875440,0.8,2024.2,2023.6,0.47543167]
[1772151875670,2.0350568,2024.2,2023.6,0.47543167]
[1772151875848,0.8,2024.2,2023.6,0.47543167]
[1772151876048,0.45269461,2024.5,2023.8,0.47543167]
[1772151876756,0.45269461,2024.4,2023.8,0.47543167]
[1772151877166,2.48755499,2024.6,2023.8,0.47543167]
[1772151877472,2.48750982,2024.6,2023.8,0.47543167]
[1772151877873,1.25269461,2024.6,2023.8,0.47543167]
[1772151878056,1.25269461,2024.6,2024.0,0.49396993]
[1772151878253,0.8,2024.6,2024.0,0.49396993]
[1772151878451,0.47080247,2024.8,2024.0,0.49396993]
[1772151879056,0.47080247,2024.7,2024.0,0.49396993]
[1772151880271,0.47224846,2024.6,2024.1,1.23511684]
[1772151880473,0.47224846,2024.6,2024.1,1.72767153]
[1772151880682,1.918,2024.7,2024.2,0.49255469]
[1772151881960,1.7068665,2025.0,2024.2,0.49255469]
[1772151882170,3.6238665,2025.0,2024.2,0.49255469]
[1772151882585,3.6238665,2025.0,2024.3,1.7275495]
[1772151883475,0.47224846,2024.9,2024.3,1.7275495]
[1772151884288,0.001,2024.5,2024.3,1.7275495]
[1772151888187,0.47224846,2025.1,2024.5,0.49255469]
[1772151889993,0.47224846,2024.9,2024.5,0.49255469]
[1772151890172,0.47224846,2025.0,2024.5,1.72742536]
[1772151890788,0.47224846,2025.2,2024.6,0.49255469]
[1772151892164,0.47224846,2025.2,2024.7,1.72730551]
[1772151892666,1.23438588,2025.3,2024.8,0.49255469]
[1772151892895,1.70759676,2025.4,2024.8,0.49255469]
[1772151893076,0.47224846,2025.3,2024.8,0.49255469]
[1772151893275,0.47224846,2025.3,2024.7,1.23475082]
[1772151893483,0.47224846,2025.3,2024.6,1.72734317]
[1772151895700,1.70669444,2025.2,2024.6,1.72734317]
[1772151895909,0.001,2025.4,2024.7,0.49255469]
[1772151897312,0.001,2025.4,2024.7,0.49365469]
[1772151897513,0.001,2025.0,2024.7,0.49365469]
[1772151897813,0.001,2025.0,2024.9,0.49255469]
[1772151898610,0.001,2025.4,2024.9,0.49255469]
[1772151900316,0.001,2025.4,2025.1,0.49255469]
[1772151902505,0.001,2025.4,2025.3,0.49255469]
[1772151903130,0.001,2025.4,2024.9,0.49255469]
[1772151903648,0.47324846,2025.4,2024.8,1.23468984]
[1772151904021,0.47324846,2025.4,2024.8,1.72724453]
[1772151904233,0.47324846,2025.4,2024.7,0.0011]
[1772151904613,0.47224846,2025.2,2024.7,0.0011]
[1772151907035,0.47224846,2025.0,2024.7,0.0011]
[1772151908939,0.47224846,2024.8,2024.2,1.72868905]
[1772151909139,0.47224846,2024.8,2024.2,0.49365469]
[1772151909324,0.47224846,2024.8,2024.2,0.0011]
[1772151910037,0.47224846,2024.8,2024.2,0.48441508]
[1772151910645,0.47224846,2024.8,2024.7,0.0011]
[1772151910940,1.7069383,2024.8,2024.7,0.0011]
[1772151912048,0.47224846,2024.8,2024.7,0.0011]
[1772151912251,0.49741224,2025.1,2024.7,0.0011]
[1772151915259,1.73193762,2025.1,2024.7,0.0011]
[1772151915558,0.49741224,2025.0,2024.7,0.0011]
[1772151916053,0.49741224,2025.0,2024.5,0.0011]
[1772151917120,1.73204111,2024.9,2024.5,0.0011]
[1772151917322,0.49741224,2024.8,2024.5,0.0011]
[1772151917616,1.906,2024.7,2024.5,0.0011]
[1772151918460,0.49741224,2024.6,2024.5,0.0011]
[1772151919124,0.49741224,2024.5,2024.2,0.0011]
[1772151921028,0.49741224,2024.5,2023.8,0.48331508]
[1772151921228,0.49741224,2024.3,2023.8,0.48331508]
[1772151921449,2.40541224,2024.3,2023.8,0.48331508]
[1772151921646,2.40541224,2024.3,2023.6,4.94162165]
[1772151921647,0.49741224,2024.2,2023.6,0.48331508]
[1772151922348,0.49741224,2024.2,2023.4,1.7199109]
[1772151922856,0.49741224,2024.1,2023.4,0.0011]
[1772151923253,0.49741224,2023.9,2023.4,0.0011]
[1772151923427,1.907,2023.8,2023.4,0.0011]
[1772151923628,1.907,2023.8,2023.4,0.48441508]
[1772151924521,1.907,2023.8,2023.4,0.0011]
[1772151924727,2.40441224,2023.8,2023.4,0.0011]
[1772151924927,0.49741224,2023.7,2023.4,0.0011]
[1772151925237,1.73280807,2023.7,2023.4,0.0011]
[1772151925651,0.49741224,2023.7,2023.4,0.0011]
[1772151926055,3.1423088,2023.8,2023.4,0.0011]
[1772151926255,3.63972104,2023.8,2023.4,0.0011]
[1772151927379,0.49741224,2023.7,2023.4,0.0011]
[1772151927769,0.49741224,2023.7,2023.2,0.0011]
[1772151930283,1.73283426,2023.6,2023.2,0.0011]
[1772151930480,1.23538291,2023.7,2023.2,0.0011]
[1772151930674,1.23538291,2023.7,2023.2,0.48441508]
[1772151930862,1.73279515,2023.7,2023.2,0.48441508]
[1772151933583,1.73279515,2023.7,2023.2,0.0011]
[1772151933788,0.49741224,2023.6,2023.2,0.0011]
[1772151934461,0.49741224,2023.8,2023.2,0.48441508]
[1772151934656,1.91,2023.8,2023.2,0.48441508]
[1772151935398,3.14530601,2023.8,2023.2,0.48441508]
[1772151935563,3.14530601,2023.8,2023.4,0.0011]
[1772151935885,1.91,2023.8,2023.4,0.0011]
[1772151936387,3.64271747,2023.8,2023.4,0.0011]
[1772151936894,3.64271747,2023.8,2023.4,0.48441508]
[1772151936895,1.91,2023.8,2023.4,0.48441508]
[1772151938092,1.91,2023.8,2023.6,0.48331508]
[1772151940078,1.23519888,2024.0,2023.6,0.48331508]
[1772151940887,1.69523223,2024.0,2023.6,0.48331508]
[1772151941092,0.46003335,2023.9,2023.4,1.71959595]
[1772151941295,0.46003335,2023.9,2023.4,0.4841093]
[1772151942290,0.46003335,2023.9,2023.4,1.71963121]
[1772151942487,0.46003335,2023.9,2023.5,0.4830093]
[1772151942793,1.69528085,2023.9,2023.5,0.4830093]
[1772151943178,0.46003335,2023.9,2023.5,0.4830093]
[1772151943677,1.69528956,2023.9,2023.5,0.4830093]
[1772151943899,0.46003335,2023.9,2023.5,0.4830093]
[1772151944097,0.46003335,2023.9,2023.5,0.4330093]
[1772151944294,0.46003335,2023.9,2023.5,1.66848871]
[1772151944702,1.909,2024.0,2023.6,0.4830093]
[1772151945695,3.14419502,2024.0,2023.6,0.4830093]
[1772151946793,0.001,2023.8,2023.6,0.4830093]
[1772151947402,0.001,2023.8,2023.4,0.4841093]
[1772151947978,0.001,2023.8,2023.5,0.4830093]
[1772151948578,3.14399657,2024.3,2023.6,0.4830093]
[1772151948975,1.909,2024.3,2023.8,0.4830093]
[1772151949586,0.001,2024.4,2023.8,0.4830093]
[1772151949992,1.23593623,2024.4,2023.8,0.4830093]
[1772151950190,0.46003335,2024.3,2023.8,0.4830093]
[1772151950379,0.46003335,2024.3,2023.7,1.23536097]
[1772151951077,1.69508917,2024.2,2023.6,1.71838929]
[1772151951290,1.23505582,2024.2,2023.7,0.4830093]
[1772151951492,1.23504451,2024.3,2023.7,0.4830093]
[1772151951808,0.46003335,2024.2,2023.7,0.4830093]
[1772151953013,1.23511684,2024.1,2023.5,1.8990093]
[1772151953228,0.46003335,2024.0,2023.6,0.4830093]
[1772151953982,1.69601912,2024.4,2023.6,0.4830093]
[1772151955315,1.69601912,2024.4,2023.8,0.4830093]
[1772151955617,0.46003335,2024.3,2023.8,0.4830093]
[1772151958122,1.69503688,2024.3,2023.9,0.4830093]
[1772151959523,0.001,2024.1,2023.9,0.4830093]
[1772151960226,0.001,2024.1,2023.9,1.7182373]
[1772151960431,0.001,2024.1,2024.0,0.4830093]
[1772151960797,0.001,2024.1,2023.8,0.4830093]
[1772151961094,1.69527224,2023.9,2023.5,0.0011]
[1772151961307,0.46003335,2023.8,2023.5,0.0011]
[1772151963517,0.46003335,2023.7,2023.4,0.0011]
[1772151964526,1.23531968,2023.8,2023.4,0.0011]
[1772151964732,1.69532189,2023.9,2023.4,0.4841093]
[1772151965730,3.14222623,2024.0,2023.5,0.4830093]
[1772151966231,3.60225958,2024.0,2023.5,0.4830093]
[1772151966432,3.14222623,2024.0,2023.5,0.4830093]
[1772151966802,0.46003335,2023.9,2023.5,0.4830093]
[1772151967001,0.76794607,2023.9,2023.4,0.0011]
[1772151967208,0.76794607,2023.9,2022.9,6.3624623]
[1772151967209,0.46003335,2023.4,2021.7,0.4830093]
[1772151967518,0.46003335,2023.3,2022.8,0.4830093]
[1772151967723,0.46003335,2023.2,2022.6,0.4830093]
[1772151967937,2.03555033,2023.4,2022.8,0.4830093]
[1772151967938,1.23555033,2023.4,2022.8,0.4830093]
[1772151968726,1.69558368,2023.4,2022.8,0.4830093]
[1772151969037,1.69558368,2023.4,2022.9,1.23679483]
[1772151969404,0.46003335,2023.3,2022.9,1.23679483]
[1772151969604,1.69569962,2023.2,2022.9,1.23679483]
[1772151969830,0.46003335,2023.2,2022.9,1.23679483]
[1772151970131,0.46003335,2023.2,2022.7,1.71892051]
[1772151970315,1.73060726,2023.4,2022.8,1.70400177]
[1772151970839,0.49501905,2023.4,2022.9,1.23679483]
[1772151971042,0.49501905,2023.3,2022.8,1.23679483]
[1772151971624,1.23558106,2023.4,2022.8,2.93988761]
[1772151972026,1.23558106,2023.4,2022.9,0.46720694]
[1772151973361,0.49501905,2023.4,2022.5,1.23605223]
[1772151973523,0.49501905,2023.4,2022.6,0.46720694]
[1772151973719,1.73062424,2023.3,2022.6,1.70323829]
[1772151973925,1.73062424,2023.3,2022.7,0.46720694]
[1772151975036,0.49501905,2023.2,2022.6,0.46720694]
[1772151975242,0.49501905,2023.2,2022.4,0.46720694]
[1772151975944,0.49501905,2023.0,2022.4,0.46720694]
[1772151976143,1.917,2022.9,2022.4,0.46720694]
[1772151976331,1.917,2023.1,2022.5,0.46720694]
[1772151977957,3.15276401,2023.1,2022.6,0.46720694]
[1772151979557,3.64778306,2023.1,2022.6,0.46720694]
[1772151979771,0.49501905,2023.0,2022.4,0.46720694]
[1772151981059,0.49501905,2023.0,2022.2,1.70344145]
[1772151981841,1.72808058,2022.9,2022.3,0.47196173]
[1772151982668,1.23582947,2023.0,2022.3,0.47196173]
[1772151983568,1.72806053,2023.0,2022.3,0.47196173]
[1772151983766,3.64506053,2023.0,2022.5,0.0011]
[1772151984060,0.49223106,2022.9,2022.5,0.0011]
[1772151984760,3.15282947,2023.0,2022.5,0.0011]
[1772151985072,1.917,2023.0,2022.5,0.47306173]
[1772151985654,3.64503321,2023.0,2022.5,0.47306173]
[1772151985847,3.64503321,2023.0,2022.5,1.70912335]
[1772151986069,2.40923106,2023.0,2022.5,1.70912335]
[1772151986566,3.64502332,2023.0,2022.5,1.70912335]
[1772151986772,3.15279226,2023.0,2022.6,0.47196173]
[1772151987394,3.64502332,2023.0,2022.5,0.0011]
[1772151987591,3.64502332,2023.0,2022.5,0.47306173]
[1772151988493,0.49223106,2022.9,2022.5,0.0011]
[1772151989482,0.49223106,2022.9,2022.1,4.9452072]
[1772151989483,0.49223106,2022.9,2022.1,0.47196173]
[1772151989882,0.49223106,2022.7,2022.1,1.70829924]
[1772151990082,0.49223106,2022.7,2022.1,0.47196173]
[1772151990395,4.31531978,2022.2,2021.4,0.0011]
[1772151990706,0.32700857,2022.7,2021.9,0.47196173]
[1772151990996,1.72811067,2022.9,2021.7,2.15765989]
[1772151991203,1.72811067,2022.9,2022.0,0.47196173]
[1772151991378,1.928,2023.3,2022.3,0.47196173]
[1772151991699,0.49223106,2023.2,2022.3,0.47196173]
[1772151992207,0.49223106,2023.0,2022.0,0.47196173]
[1772151993282,0.49223106,2022.8,2021.7,0.47196173]
[1772151993474,0.49223106,2022.6,2021.7,0.47196173]
[1772151994311,1.23609394,2022.5,2021.7,0.47196173]
[1772151994681,1.23609394,2022.5,2021.8,0.47196173]
[1772151995077,0.49223106,2022.4,2021.6,0.47196173]
[1772151996008,1.23609394,2022.5,2021.6,0.47196173]
[1772151996213,1.23609394,2022.5,2021.9,0.0011]
[1772151996508,1.728325,2022.5,2021.9,0.0011]
[1772151997351,1.23604426,2022.6,2021.9,0.47306173]
[1772151998797,1.23604426,2022.6,2021.9,1.7095177]
[1772151999117,0.49223106,2022.5,2021.9,0.0011]
[1772151999318,0.49223106,2022.5,2021.7,0.47306173]
[1772151999691,0.49223106,2022.5,2021.7,0.0011]
[1772152001254,0.48585422,2022.3,2021.7,0.0011]
[1772152001457,1.923,2022.2,2021.7,0.0011]
[1772152001957,2.40885422,2022.2,2021.7,0.0011]
[1772152002322,2.41522052,2022.2,2021.7,0.0011]
[1772152003021,0.49222052,2022.1,2021.7,0.0011]
[1772152003221,1.72862012,2022.0,2021.4,0.47882456]
[1772152003442,0.49222052,2021.9,2021.4,0.47882456]
[1772152004222,1.2363996,2022.0,2021.4,0.47882456]
[1772152004622,1.2363996,2022.0,2021.4,1.7155882]
[1772152005142,1.2363996,2022.0,2021.4,0.47882456]
[1772152005721,0.49222052,2021.9,2021.4,0.47882456]
[1772152005921,0.49222052,2021.9,2021.4,0.0011]
[1772152006125,1.2363996,2022.0,2021.4,1.71558349]
[1772152006326,1.2363996,2022.0,2021.4,0.47882456]
[1772152007426,1.72862012,2022.0,2021.4,0.47882456]
[1772152007749,1.2363996,2022.0,2021.4,0.0011]
[1772152007931,0.49222052,2021.6,2021.0,0.47772456]
[1772152008135,1.924,2021.5,2021.0,0.47772456]
[1772152008336,2.41622052,2021.5,2020.9,0.003]
[1772152008546,0.49222052,2021.4,2020.9,0.003]
[1772152009227,0.49222052,2021.4,2021.1,0.0011]
[1772152009421,1.23682778,2021.3,2021.1,0.0011]
[1772152010052,0.49222052,2021.2,2020.5,0.48072456]
[1772152010253,1.23682778,2021.3,2020.5,0.48072456]
[1772152010426,1.23682778,2021.3,2020.6,0.47772456]
[1772152010953,1.925,2021.4,2020.6,0.47772456]
[1772152011249,2.41722052,2021.4,2020.6,0.47772456]
[1772152011455,1.23682778,2021.3,2020.6,1.71497689]
[1772152011630,1.23682778,2021.3,2020.6,0.47772456]
[1772152012344,1.23682778,2021.3,2020.6,1.71497853]
[1772152012659,1.23682778,2021.3,2020.6,0.47772456]
[1772152013064,1.23682778,2021.3,2020.7,0.47772456]
[1772152013557,1.23682778,2021.3,2020.7,1.71490923]
[1772152014059,1.23682778,2021.3,2020.7,0.47772456]
[1772152014758,1.7290483,2021.3,2020.7,0.47772456]
[1772152015238,0.49222052,2021.2,2020.5,0.003]
[1772152015444,0.49222052,2021.2,2020.5,1.71804033]
[1772152015753,1.23695017,2021.1,2020.6,0.47772456]
[1772152016169,1.23682778,2021.3,2020.6,0.47772456]
[1772152016850,0.49222052,2021.2,2020.6,0.47772456]
[1772152017350,0.49222052,2021.2,2020.5,0.003]
[1772152018151,1.23695017,2021.1,2020.5,0.003]
[1772152018679,1.72917069,2021.1,2020.5,0.003]
[1772152018976,0.49222052,2021.6,2020.2,0.47772456]
[1772152019152,1.925,2021.4,2020.3,0.47772456]
[1772152019473,4.94657696,2021.8,2020.3,0.47772456]
[1772152019675,0.897,2021.7,2020.5,0.47772456]
[1772152019887,2.15765989,2021.6,2020.5,0.47772456]
[1772152020080,0.49222052,2021.5,2020.5,0.47772456]
[1772152020652,0.49222052,2021.5,2020.6,0.47772456]
[1772152020653,1.23676659,2021.4,2020.6,0.47772456]
[1772152020857,1.72898711,2021.4,2020.7,0.0011]
[1772152021060,0.49222052,2021.2,2020.7,0.0011]
[1772152021254,2.42122052,2021.1,2020.5,0.47772456]
[1772152021468,2.42122052,2021.1,2020.5,0.47882456]
[1772152022068,0.49222052,2021.1,2020.5,0.47882456]
[1772152022362,1.929,2021.2,2020.5,0.47882456]
[1772152023190,1.23695017,2021.1,2020.6,0.47772456]
[1772152024593,0.001,2021.4,2020.6,0.47772456]
[1772152025172,0.001,2021.4,2020.8,0.47772456]
[1772152027095,1.929,2021.9,2021.0,0.47772456]
[1772152027291,3.16551663,2021.9,2021.2,0.47772456]
[1772152027790,0.49222052,2021.8,2021.0,0.47772456]
[1772152028298,0.49222052,2021.6,2021.0,0.47772456]
[1772152029375,1.23670541,2021.5,2021.0,0.47772456]
[1772152029576,1.927,2021.4,2021.0,0.47772456]
[1772152032194,3.16380959,2021.4,2021.0,0.47772456]
[1772152032494,3.16380959,2021.4,2020.9,0.45227398]
[1772152033387,0.001,2021.2,2020.9,0.45227398]
[1772152033584,1.23668981,2021.6,2020.9,0.45227398]
[1772152033894,1.928,2021.6,2020.9,0.45227398]
[1772152034198,1.928,2021.6,2021.1,0.45227398]
[1772152034578,3.16465137,2021.6,2021.1,0.45227398]
[1772152036283,1.928,2021.6,2021.2,0.45227398]
[1772152037791,3.16465051,2021.6,2021.2,0.45227398]
[1772152041501,3.16465051,2021.6,2021.1,1.23693996]
[1772152041502,3.61848568,2021.6,2021.0,0.45227398]
[1772152042171,1.69040341,2021.8,2021.0,0.45227398]
[1772152042373,3.61740341,2021.8,2021.0,0.45227398]
[1772152043099,3.61740341,2021.8,2021.2,0.45227398]
[1772152044709,0.45383517,2021.7,2021.2,0.45227398]
[1772152045411,0.45383517,2021.5,2021.0,0.45227398]
[1772152045613,1.23664424,2021.6,2021.0,0.45227398]
[1772152045800,1.23659266,2021.7,2021.2,0.45337398]
[1772152045976,0.001,2021.6,2021.2,0.45337398]
[1772152047209,0.45483517,2021.6,2021.2,0.0011]
[1772152047510,1.23670541,2021.5,2021.2,0.0011]
[1772152051037,1.69152641,2021.6,2021.2,0.0011]
[1772152051410,0.001,2021.6,2021.2,0.0011]
[1772152051622,0.45483517,2021.6,2021.2,0.0011]
[1772152052532,0.001,2021.6,2021.2,0.45337398]
[1772152052739,1.43,2021.5,2021.2,0.0011]
[1772152052918,1.43,2021.5,2021.3,0.45227398]
[1772152053530,1.43,2021.5,2021.3,1.68908042]
[1772152053747,3.12055014,2021.5,2021.2,0.0011]
[1772152053933,1.88383517,2021.5,2021.2,0.0011]
[1772152055016,3.12054109,2021.5,2021.2,0.0011]
[1772152055222,3.42934703,2021.5,2021.2,0.0011]
[1772152055431,0.45383517,2021.4,2021.2,0.0011]
[1772152055634,2.97551186,2021.5,2021.2,0.0011]
[1772152057232,2.66670592,2021.5,2021.2,0.0011]
[1772152058624,3.15522875,2021.5,2021.2,0.0011]
[1772152058952,0.48852283,2021.4,2021.2,0.0011]
[1772152060744,0.001,2021.3,2021.2,0.0011]
[1772152061353,1.69058126,2021.6,2021.2,0.0011]
[1772152061354,0.001,2021.6,2021.3,0.48012027]
[1772152061540,0.001,2021.6,2021.2,0.0011]
[1772152062276,0.45390796,2021.6,2021.2,0.0011]
[1772152062438,1.69056367,2021.6,2021.2,0.0011]
[1772152062762,1.23765085,2021.6,2021.2,0.48122027]
[1772152063136,0.001,2021.6,2021.2,0.48122027]
[1772152064585,0.001,2021.6,2021.3,1.23682778]
[1772152065268,0.45390796,2021.6,2021.2,0.48122027]
[1772152065563,0.45290796,2021.5,2021.2,0.0011]
[1772152066437,0.001,2021.6,2021.3,0.48012027]
[1772152066752,0.001,2021.6,2021.4,0.48012027]
[1772152067572,0.45290796,2022.3,2021.4,0.47912027]
[1772152068449,3.16921485,2022.4,2021.4,0.47912027]
[1772152068649,3.62212281,2022.4,2021.6,0.47912027]
[1772152068868,3.62207216,2022.4,2021.6,0.47912027]
[1772152069271,0.001,2022.4,2021.6,0.47912027]
[1772152069641,1.69006666,2022.4,2021.6,0.47912027]
[1772152070144,1.69006679,2022.4,2021.6,0.47912027]
[1772152070342,0.45390796,2022.4,2021.6,0.47912027]
[1772152070641,1.69006941,2022.4,2021.8,0.47912027]
[1772152071447,0.45390796,2022.4,2021.8,0.47912027]
[1772152071651,1.69006824,2022.4,2021.8,0.47912027]
[1772152072359,1.69007153,2022.4,2021.8,0.47912027]
[1772152072577,0.45390796,2022.4,2021.8,0.47912027]
[1772152072768,1.69006424,2022.4,2021.9,1.23646075]
[1772152073576,0.45390796,2022.4,2021.9,1.71558102]
[1772152073766,1.69006797,2022.4,2021.9,1.71558102]
[1772152073970,0.45390796,2022.4,2021.9,1.71558102]
[1772152074574,0.001,2022.2,2021.8,1.2376139]
[1772152074772,0.001,2022.2,2021.8,1.71673417]
[1772152074977,0.001,2022.2,2021.9,0.47912027]
[1772152076991,0.001,2022.2,2021.9,1.71554694]
[1772152077182,0.001,2022.2,2022.0,0.47912027]
[1772152079312,0.001,2022.2,2022.1,0.47912027]
[1772152080693,0.001,2022.4,2022.1,0.47912027]
[1772152081391,0.001,2022.4,2022.1,1.71540835]
[1772152081594,0.45290796,2022.7,2022.2,0.47912027]
[1772152081794,0.45290796,2022.6,2022.2,0.47912027]
[1772152082097,0.45290796,2022.6,2022.1,1.71440835]
[1772152082492,0.45290796,2022.6,2022.1,1.23628808]
[1772152082699,0.45290796,2022.6,2022.2,0.47812027]
[1772152082898,0.76136953,2022.8,2022.2,0.47812027]
[1772152083192,0.76136953,2022.8,2022.3,0.47812027]
[1772152083193,0.45290796,2022.8,2022.3,0.47812027]
[1772152083372,0.001,2022.9,2022.5,0.47812027]
[1772152083775,0.45390796,2022.9,2022.5,0.47812027]
[1772152085678,1.68980562,2022.9,2022.5,0.47812027]
[1772152086090,0.45390796,2022.9,2022.5,0.47812027]
[1772152086607,1.689758,2022.9,2022.5,0.47812027]
[1772152086788,0.45390796,2022.9,2022.5,1.71419157]
[1772152087475,0.001,2022.9,2022.6,0.47812027]
[1772152087676,0.001,2022.9,2022.7,0.47812027]
[1772152090204,0.001,2022.9,2022.8,1.71403088]
[1772152091008,2.69048,2023.3,2022.9,0.47712027]
[1772152091207,1.92,2023.3,2022.9,0.47712027]
[1772152091429,3.92401029,2023.5,2022.9,0.47712027]
[1772152091729,0.001,2023.5,2023.2,0.22712027]
[1772152092528,0.001,2023.5,2023.4,0.22712027]
[1772152094729,0.001,2023.5,2023.2,0.22712027]
[1772152094931,0.46301843,2023.5,2022.9,2.64583973]
[1772152095141,0.46201843,2023.3,2022.9,1.23583973]
[1772152095605,0.46201843,2023.3,2022.8,1.23585232]
[1772152096816,0.46201843,2023.3,2022.8,1.46297259]
[1772152097242,1.23560035,2023.4,2022.9,0.22712027]
[1772152097549,0.46201843,2023.4,2022.9,0.22712027]
[1772152098533,0.001,2023.5,2022.9,0.22712027]
[1772152098841,0.001,2023.5,2023.1,0.22712027]
[1772152101059,0.001,2023.5,2023.2,1.46278654]
[1772152101357,0.001,2023.5,2023.3,0.22712027]
[1772152102063,0.001,2023.5,2023.2,1.23566627]
[1772152102422,0.001,2023.5,2023.1,0.22712027]
[1772152102627,0.46301843,2023.5,2023.0,2.87589157]
[1772152103246,0.46301843,2023.5,2023.1,0.22712027]
[1772152105733,0.001,2023.5,2023.1,0.22712027]
[1772152106058,0.001,2023.5,2023.1,1.46284271]
[1772152109668,0.001,2023.5,2023.2,0.22712027]
[1772152109873,0.001,2023.5,2023.3,1.23560519]
[1772152110044,0.001,2023.5,2023.3,1.46272546]
[1772152110977,0.001,2023.5,2023.4,0.22712027]
[1772152111465,3.59924551,2024.0,2023.4,0.22712027]
[1772152111670,0.46201843,2023.9,2023.4,0.22712027]
[1772152111868,0.46201843,2023.9,2023.5,1.23548307]
[1772152113277,0.46201843,2023.9,2023.4,1.46261651]
[1772152116159,0.46201843,2023.8,2023.4,1.46261651]
[1772152116674,0.46201843,2024.0,2023.5,0.22712027]
[1772152117774,0.46201843,2024.0,2023.4,1.23549624]
[1772152117967,0.46201843,2024.0,2023.3,0.0011]
[1772152118167,0.46201843,2024.0,2023.3,0.22822027]
[1772152118379,0.46223416,2023.9,2023.3,0.22822027]
[1772152120083,1.71964244,2024.1,2023.5,0.22712027]
[1772152120380,0.48347574,2024.0,2023.5,0.22712027]
[1772152121162,0.48347574,2024.0,2023.4,1.4626644]
[1772152121780,0.48347574,2024.0,2023.5,0.22712027]
[1772152122673,0.001,2024.1,2023.7,0.22712027]
[1772152123491,0.48447574,2024.1,2023.7,0.22712027]
[1772152124605,0.001,2024.1,2023.8,1.23529993]
[1772152124899,0.48447574,2024.1,2023.8,1.23529993]
[1772152125288,0.48447574,2024.1,2023.7,1.46243519]
[1772152125594,0.48447574,2024.1,2023.7,0.22712027]
[1772152125906,0.48447574,2024.1,2023.6,1.46251306]
[1772152126078,0.48447574,2024.1,2023.6,1.46361306]
[1772152126279,0.001,2023.9,2023.7,0.22712027]